Workbook

Sheet Прайс
A1: Название | B1: Цена
A2: Резистор 1 ом | B2: 1.23
A3: Резистор 2 ом | B3: 2.11 | D3: Заменить на Резистор 2.2 ом
A4: Резистор 3 ом | B4: 4.22
A5: Резистор 3.3 ом | B5: 5.32
A6: Резистор 5.6 ом | B6: 6.84
A7: Резистор 6.9 ом | B7: 2.66
A8: Плата МК-16 | B8: 50 | D8: Заменить на плату МВ-01
A9: Микросхема 8962 | B9: 35.36
A10: Транзистор 2231 | B10: 12.58
A11: Драйвер 996 | B11: 39.7

Sheet Себестоимость
A1: Название | B1: Кол-во | C1: Цена | D1: Сумма
A2: Резистор 1 ом | B2: 2 | C2: =VLOOKUP(A2,Прайс!$A$2:$B$7,2,0) -> 1.23 | D2: =C2*B2 -> 2.46
A3: Резистор 2 ом | B3: 2 | C3: =VLOOKUP(A3,Прайс!$A$2:$B$7,2,0) -> 2.11 | D3: =C3*B3 -> 4.22
A4: Резистор 3 ом | B4: 1 | C4: =VLOOKUP(A4,Прайс!$A$2:$B$7,2,0) -> 4.22 | D4: 4.22
A5: Резистор 3.3 ом | B5: 3 | C5: =VLOOKUP(A5,Прайс!$A$2:$B$7,2,0) -> 5.32 | D5: 15.96
A6: Резистор 5.6 ом | B6: 1 | C6: =VLOOKUP(A6,Прайс!$A$2:$B$7,2,0) -> 6.84 | D6: 6.84
A7: Резистор 6.9 ом | B7: 11 | C7: =VLOOKUP(A7,Прайс!$A$2:$B$15,2,0) -> 2.66 | D7: 29.26
A8: Плата МК-16 | B8: 1 | C8: =VLOOKUP(A8,Прайс!$A$2:$B$15,2,0) -> 50 | D8: 50
A9: Микросхема 8962 | B9: 2 | C9: =VLOOKUP(A9,Прайс!$A$2:$B$15,2,0) -> 35.36 | D9: 70.72
A10: Транзистор 2231 | B10: 4 | C10: =VLOOKUP(A10,Прайс!$A$2:$B$15,2,0) -> 12.58 | D10: 50.32
A11: Драйвер 996 | B11: 1 | C11: =VLOOKUP(A11,Прайс!$A$2:$B$15,2,0) -> 39.7 | D11: 39.7
A12: Плата МК-16
A13: ИТОГО | D13: =SUM(D2:D11) -> 273.7

Sheet Лист3
